fUST/lending_fUST_20250602
["ID","MTS","AMOUNT","RATE_DAILY","PERIOD"]
[363795071,1748873472144,-151.0,0.00023105,7]
[363795072,1748873472155,-152.264403,0.0002314,7]
[363795073,1748873472164,-152.264403,0.0002314,7]
[363795074,1748873472175,-419.159235,0.0002314,7]
[363795075,1748873472186,-419.159235,0.0002314,7]
[363795076,1748873472195,-215.683478,0.0002314,2]
[363795077,1748873472206,-215.683478,0.0002314,2]
[363795078,1748873472216,-845.484416,0.0002314,7]
[363795079,1748873472226,-845.484416,0.0002314,7]
[363795080,1748873472236,-485.466173,0.0002314,7]
[363795081,1748873472246,-485.466173,0.0002314,7]
[363795082,1748873472257,-2126.85439956,0.00023176,8]
[363795083,1748873472272,-1977.03782924,0.00023193,2]
[363795084,1748873472283,-208.08062603,0.000232,2]
[363795085,1748873472293,-157.028082,0.00023216,7]
[363795086,1748873472303,-157.028082,0.0002323,8]
[363795087,1748873472313,-5000.0,0.00023261,2]
[363795088,1748873472323,-153.0,0.00023265,2]
[363795089,1748873472333,-157.791356,0.00023287,7]
[363795090,1748873472343,-203.170098,0.00023287,7]
[363795091,1748873472353,-203.170098,0.00023287,7]
[363795092,1748873472364,-178.401837,0.00023287,7]
[363795093,1748873472374,-178.401837,0.00023287,7]
[363795094,1748873472385,-500.0,0.00023287,7]
[363795095,1748873472395,-1977.03782924,0.00023297,2]
[363795096,1748873472405,-250.00000099,0.00023299,2]
[363795097,1748873472415,-160.0,0.00023299,2]
[363795098,1748873472425,-583.1371742,0.000233,15]
[363795099,1748873472435,-31321.00000001,0.000233,3]
[363795100,1748873472444,-500.0,0.000233,3]
[363795101,1748873472453,-500.0,0.000233,3]
[363795102,1748873472463,-151.0,0.000233,7]
[363795103,1748873472472,-151.0,0.000233,7]
[363795104,1748873472481,-151.0,0.000233,7]
[363795105,1748873472490,-151.0,0.000233,7]
[363795106,1748873472500,-151.0,0.000233,7]
[363795107,1748873472509,-151.0,0.000233,7]
[363795108,1748873472522,-151.0,0.000233,7]
[363795109,1748873472532,-151.0,0.000233,7]
[363795110,1748873472542,-151.0,0.000233,7]
[363795111,1748873472551,-151.0,0.000233,7]
[363795112,1748873472561,-151.0,0.000233,7]
[363795113,1748873472572,-151.0,0.000233,7]
[363795114,1748873472581,-20042.44756885,0.000233,30]
[363795115,1748873472593,-151.0,0.000233,7]
[363795116,1748873472606,-151.0,0.000233,7]
[363795117,1748873472615,-276.281799,0.000233,7]
[363795118,1748873472625,-153.28226,0.000233,7]
[363795119,1748873472635,-153.28226,0.000233,7]
[363795120,1748873472645,-153.28226,0.000233,7]
[363795121,1748873472655,-153.28226,0.000233,7]
[363795122,1748873472665,-153.28226,0.000233,7]
[363795123,1748873472674,-153.28226,0.000233,7]
[363795124,1748873472684,-151.0,0.000233,7]
[363795125,1748873472694,-151.0,0.000233,7]
[363795126,1748873472703,-151.0,0.000233,7]
[363795127,1748873472714,-194.84149,0.000233,7]
[363795128,1748873472724,-194.84149,0.000233,7]
[363795129,1748873472734,-194.84149,0.000233,7]
[363795130,1748873472744,-194.84149,0.000233,7]
[363795131,1748873472755,-194.84149,0.000233,7]
[363795132,1748873472767,-194.84149,0.000233,7]
[363795133,1748873472777,-151.0,0.000233,7]
[363795134,1748873472787,-240.295316,0.000233,7]
[363795135,1748873472797,-240.295316,0.000233,7]
[363795136,1748873472806,-240.295316,0.000233,7]
[363795137,1748873472815,-240.295316,0.000233,7]
[363795138,1748873472825,-151.0,0.000233,7]
[363795139,1748873472834,-151.0,0.000233,7]
[363795140,1748873472843,-234.827056,0.000233,7]
[363795141,1748873472852,-383.707035,0.000233,7]
[363795142,1748873472862,-383.707035,0.000233,7]
[363795143,1748873472871,-383.707035,0.000233,7]
[363795144,1748873472881,-383.707035,0.000233,7]
[363795145,1748873472890,-152.264403,0.000233,7]
[363795146,1748873472900,-152.264403,0.000233,7]
[363795147,1748873472909,-152.264403,0.000233,7]
[363795148,1748873472919,-152.264404,0.000233,7]
[363795149,1748873472928,-419.159235,0.000233,7]
[363795150,1748873472938,-419.159235,0.000233,7]
[363795151,1748873472947,-419.159235,0.000233,7]
[363795152,1748873472957,-419.159243,0.000233,7]
[363795153,1748873472967,-151.0,0.000233,7]
[363795154,1748873472976,-151.0,0.000233,7]
[363795155,1748873472985,-306.757923,0.000233,7]
[363795156,1748873472995,-306.757928,0.000233,7]
[363795157,1748873473004,-215.683478,0.000233,2]
[363795158,1748873473017,-215.683478,0.000233,2]
[363795159,1748873473027,-215.683478,0.000233,2]
[363795160,1748873473036,-215.68348,0.000233,2]
[363795161,1748873473046,-203.170098,0.000233,7]
[363795162,1748873473055,-203.170098,0.000233,7]
[363795163,1748873473064,-203.170098,0.000233,7]
[363795164,1748873473074,-203.170102,0.000233,7]
[363795165,1748873473083,-845.484416,0.000233,7]
[363795166,1748873473093,-845.484416,0.000233,7]
[363795167,1748873473102,-845.484416,0.000233,7]
[363795168,1748873473111,-845.484414,0.000233,7]
[363795169,1748873473121,-151.0,0.000233,7]
[363795170,1748873473130,-485.466173,0.000233,7]
[363795171,1748873473139,-485.466173,0.000233,7]
[363795172,1748873473149,-485.466173,0.000233,7]
[363795173,1748873473159,-485.46618,0.000233,7]
[363795174,1748873473168,-151.0,0.000233,7]
[363795175,1748873473178,-151.0,0.000233,7]
[363795176,1748873473187,-151.731635,0.000233,7]
[363795177,1748873473197,-271.396556,0.000233,7]
[363795178,1748873473207,-178.401837,0.000233,7]
[363795179,1748873473216,-178.401837,0.000233,7]
[363795180,1748873473225,-178.401837,0.000233,7]
[363795181,1748873473235,-178.401845,0.000233,7]
[363795182,1748873473245,-151.0,0.000233,7]
[363795183,1748873473255,-151.927387,0.000233,7]
[363795184,1748873473265,-151.0,0.000233,7]
[363795185,1748873473275,-151.0,0.000233,7]
[363795186,1748873473285,-151.0,0.000233,7]
[363795187,1748873473295,-151.0,0.000233,7]
[363795188,1748873473304,-293.178687,0.000233,7]
[363795189,1748873473314,-151.0,0.000233,7]
[363795190,1748873473324,-151.0,0.000233,7]
[363795191,1748873473334,-199.937283,0.000233,7]
[363795192,1748873473343,-172.354679,0.000233,7]
[363795193,1748873473353,-172.354679,0.000233,7]
[363795194,1748873473363,-172.354679,0.000233,7]
[363795195,1748873473373,-172.354679,0.000233,7]
[363795196,1748873473388,-172.354679,0.000233,7]
[363795197,1748873473399,-172.354679,0.000233,7]
[363795198,1748873473408,-151.0,0.000233,7]
[363795199,1748873473417,-151.0,0.000233,7]
[363795200,1748873473427,-151.0,0.000233,7]
[363795201,1748873473436,-156.272446,0.000233,7]
[363795202,1748873473446,-156.272446,0.000233,7]
[363795203,1748873473455,-156.272446,0.000233,7]
[363795204,1748873473464,-156.272446,0.000233,7]
[363795205,1748873473474,-156.272446,0.000233,7]
[363795206,1748873473483,-156.272446,0.000233,7]
[363795207,1748873473492,-151.0,0.000233,7]
[363795208,1748873473501,-151.0,0.000233,7]
[363795209,1748873473511,-151.0,0.000233,7]
[363795210,1748873473523,-151.0,0.000233,7]
[363795211,1748873473533,-151.0,0.000233,7]
[363795212,1748873473543,-151.0,0.000233,7]
[363795213,1748873473552,-700.477821,0.000233,7]
[363795214,1748873473561,-700.477821,0.000233,7]
[363795215,1748873473571,-700.477821,0.000233,7]
[363795216,1748873473580,-700.477821,0.000233,7]
[363795217,1748873473590,-700.477821,0.000233,7]
[363795218,1748873473602,-700.477821,0.000233,7]
[363795219,1748873473611,-454.013607,0.000233,7]
[363795220,1748873473621,-454.013607,0.000233,7]
[363795221,1748873473630,-454.013607,0.000233,7]
[363795222,1748873473642,-454.013607,0.000233,7]
[363795223,1748873473652,-454.013607,0.000233,7]
[363795224,1748873473661,-454.013607,0.000233,7]
[363795225,1748873473672,-267.178213,0.000233,7]
[363795226,1748873473682,-267.178213,0.000233,7]
[363795227,1748873473692,-267.178213,0.000233,7]
[363795228,1748873473703,-267.178213,0.000233,7]
[363795229,1748873473712,-267.178213,0.000233,7]
[363795230,1748873473722,-267.178213,0.000233,7]
[363795231,1748873473731,-160.0,0.000233,3]
[363795232,1748873473741,-423.56953423,0.000233,3]
[363795233,1748873473752,-2712.576526,0.000233,2]
[363795234,1748873473762,-2712.576526,0.000233,2]
[363795235,1748873473774,-2712.576526,0.000233,2]
[363795236,1748873473784,-2712.576526,0.000233,2]
[363795237,1748873473793,-2712.576526,0.000233,2]
[363795238,1748873473803,-2712.576526,0.000233,2]
[363795239,1748873473813,-151.0,0.000233,7]
[363795240,1748873473822,-151.0,0.000233,7]
[363795241,1748873473832,-151.0,0.000233,7]
[363795242,1748873473841,-151.0,0.000233,7]
[363795243,1748873473850,-151.0,0.000233,7]
[363795244,1748873473859,-151.0,0.000233,7]
[363795245,1748873473869,-173.700959,0.000233,7]
[363795246,1748873473879,-173.700959,0.000233,7]
[363795247,1748873473888,-173.700959,0.000233,7]
[363795248,1748873473898,-173.700959,0.000233,7]
[363795249,1748873473907,-173.700959,0.000233,7]
[363795250,1748873473917,-173.700959,0.000233,7]
[363795251,1748873473927,-229.39799938,0.000233,3]
[363795252,1748873473937,-160.582104,0.000233,7]
[363795253,1748873473946,-314.262703,0.000233,7]
[363795254,1748873473955,-314.262709,0.000233,7]
[363795255,1748873473965,-9455.15584859,0.000233,3]
[363795256,1748873473976,-258973.8007122,0.000233,3]
[363795257,1748873473985,-20279.64817071,0.000233,3]
[363795259,1748873474586,-430.0,0.00016564,2]
[363795260,1748873474597,-160.0,0.00016565,2]
[363795261,1748873474608,-430.0,0.00016565,2]
[363795262,1748873474618,-1301.32,0.00016835,2]
[363795263,1748873474627,-430.0,0.00016839,2]
[363795264,1748873474639,-1301.32,0.00017109,2]
[363795265,1748873474648,-1301.32,0.00017383,2]
[363795266,1748873474658,-1301.32,0.00017657,2]
[363795267,1748873474668,-1301.32,0.00017931,2]
[363795268,1748873474679,-160.0,0.00017935,2]
[363795269,1748873474690,-1301.32,0.00018205,2]
[363795270,1748873474701,-876.76,0.00018208,2]
[363795271,1748873474711,-1301.32,0.00018479,2]
[363795272,1748873474722,-876.76,0.00018482,2]
[363795273,1748873474731,-1301.32,0.00018753,2]
[363795274,1748873474741,-876.76,0.00018756,2]
[363795275,1748873474752,-1301.32,0.00019027,2]
[363795276,1748873474762,-876.76,0.0001903,2]
[363795277,1748873474774,-430.0,0.00019178,2]
[363795278,1748873474783,-430.0,0.00019178,2]
[363795279,1748873474793,-430.0,0.00019178,2]
[363795280,1748873474802,-423.08318056,0.00019178,2]
[363795281,1748873474818,-430.0,0.00016838,2]
[363795282,1748873474827,-6.91681944,0.00019178,2]
[363795283,1748873474837,-430.0,0.00019178,2]
[363795284,1748873474847,-641.17467175,0.00019301,2]
[363795285,1748873474858,-660.14532825,0.00019301,2]
[363795286,1748873474868,-876.76,0.00019304,2]
[363795287,1748873474877,-160.0,0.00019305,2]
[363795288,1748873474887,-1301.32,0.00019575,2]
[363795289,1748873474898,-876.76,0.00019578,2]
[363795290,1748873474907,-876.76,0.00019852,2]
[363795291,1748873474918,-876.76,0.00020126,2]
[363795292,1748873474927,-876.76,0.000204,2]
[363795293,1748873474937,-876.76,0.00020674,2]
[363795294,1748873474947,-160.0,0.00020675,2]
[363795295,1748873474957,-876.76,0.00020948,2]
[363795296,1748873474967,-876.76,0.00021222,2]
[363795297,1748873474978,-876.76,0.00021496,2]
[363795298,1748873474988,-876.76,0.0002177,2]
[363795299,1748873474998,-876.76,0.00022044,2]
[363795300,1748873475008,-160.0,0.00022045,2]
[363795301,1748873475022,-876.76,0.00022318,2]
[363795302,1748873475032,-876.76,0.00022592,2]
[363795303,1748873475042,-442.23,0.00022593,2]
[363795304,1748873475052,-442.27,0.00022867,2]
[363795305,1748873475062,-497937.25530706,0.000233,3]
[363795306,1748873475072,-288.682365,0.00023341,2]
[363795307,1748873475081,-5025.13970478,0.00023348,2]
[363795308,1748873475091,-170.69,0.00023393,8]
[363795309,1748873475102,-157.028082,0.000234,3]
[363795310,1748873475113,-1977.03782924,0.000234,2]
[363795311,1748873475123,-1400.0,0.00023417,2]
[363795312,1748873475134,-2126.85439956,0.00023417,9]
[363795313,1748873475143,-157.028082,0.00023455,7]
[363795314,1748873475153,-160.0,0.00023486,2]
[363795315,1748873475164,-91651.76998445,0.00023487,2]
[363795316,1748873475173,-1056.45145162,0.000235,2]
[363795317,1748873475184,-65895.77828792,0.000235,2]
[363795318,1748873475243,-430.0,0.00017112,2]
[363795319,1748873475254,-430.0,0.00017386,2]
[363795320,1748873475264,-1301.32,0.00019849,2]
[363795321,1748873475278,-1301.32,0.00020123,2]
[363795322,1748873475289,-405.0,0.00020354,2]
[363795323,1748873475299,-1301.32,0.00020397,2]
[363795324,1748873475309,-1301.32,0.00020671,2]
[363795325,1748873475320,-405.0,0.00023354,2]
[363795326,1748873475330,-24392.3805066,0.000235,2]
[363795327,1748873475341,-153.28226,0.000235,7]
[363795328,1748873475350,-153.28226,0.000235,7]
[363795329,1748873475360,-151.0,0.000235,7]
[363795330,1748873475370,-194.84149,0.000235,7]
[363795331,1748873475380,-194.84149,0.000235,7]
[363795332,1748873475389,-240.295316,0.000235,7]
[363795333,1748873475399,-240.295313,0.000235,7]
[363795334,1748873475408,-151.0,0.000235,7]
[363795335,1748873475418,-383.707035,0.000235,7]
[363795336,1748873475427,-383.707035,0.000235,7]
[363795337,1748873475437,-151.0,0.000235,7]
[363795338,1748873475447,-172.354679,0.000235,7]
[363795339,1748873475456,-172.354679,0.000235,7]
[363795340,1748873475466,-1977.03782924,0.00023504,2]
[363795341,1748873475475,-151.0,0.00023508,7]
[363795342,1748873475485,-156.272446,0.00023508,7]
[363795343,1748873475495,-156.272446,0.00023508,7]
[363795344,1748873475504,-700.477821,0.00023508,7]
[363795345,1748873475514,-700.477821,0.00023508,7]
[363795346,1748873475526,-267.178213,0.00023521,7]
[363795347,1748873475536,-267.178213,0.00023521,7]
[363795348,1748873475546,-2712.576526,0.00023521,2]
[363795349,1748873475556,-2712.576534,0.00023521,2]
[363795350,1748873475565,-151.0,0.00023521,7]
[363795351,1748873475575,-151.0,0.00023521,7]
[363795352,1748873475586,-173.700959,0.00023521,7]
[363795353,1748873475598,-173.700959,0.00023521,7]
[363795354,1748873475608,-5400.0,0.00023529,2]
[363795355,1748873475617,-1987.89,0.0002353,2]
[363795356,1748873475627,-151.0,0.0002353,7]
[363795357,1748873475638,-46.03816916,0.0002353,7]
[363795358,1748873475650,-104.96183084,0.0002353,7]
[363795359,1748873475660,-454.013607,0.0002353,7]
[363795360,1748873475669,-454.013607,0.0002353,7]
[363795361,1748873475681,-500.0,0.00023561,2]
[363795362,1748873475691,-421.17543885,0.00023562,2]
[363795363,1748873475700,-2450.21903804,0.000236,5]
[363795364,1748873475710,-3088.65435801,0.000236,7]
[363795365,1748873475720,-2200.63484978,0.000236,2]
[363795366,1748873476050,-430.0,0.00016564,2]
[363795367,1748873476060,-430.0,0.00016565,2]
[363795368,1748873476070,-430.0,0.00016838,2]
[363795369,1748873476080,-430.0,0.00016839,2]
[363795370,1748873476090,-430.0,0.00017112,2]
[363795371,1748873476100,-430.0,0.00017113,2]
[363795372,1748873476110,-430.0,0.0001766,2]
[363795373,1748873476120,-430.0,0.00017934,2]
[363795374,1748873476130,-430.0,0.00018208,2]
[363795375,1748873476140,-430.0,0.00018482,2]
[363795376,1748873476150,-430.0,0.00018756,2]
[363795377,1748873476160,-430.0,0.0001903,2]
[363795378,1748873476170,-430.0,0.00019304,2]
[363795379,1748873476180,-430.0,0.00019578,2]
[363795380,1748873476189,-430.0,0.00019852,2]
[363795381,1748873476199,-430.0,0.00020126,2]
[363795382,1748873476208,-430.0,0.000204,2]
[363795383,1748873476218,-430.0,0.00020674,2]
[363795384,1748873476228,-1301.32,0.00020945,2]
[363795385,1748873476238,-430.0,0.00020948,2]
[363795386,1748873476247,-1301.32,0.00021219,2]
[363795387,1748873476257,-430.0,0.00021222,2]
[363795388,1748873476268,-1301.32,0.00021493,2]
[363795389,1748873476278,-430.0,0.00021496,2]
[363795390,1748873476288,-1301.32,0.00021767,2]
[363795391,1748873476298,-430.0,0.0002177,2]
[363795392,1748873476308,-1301.32,0.00022041,2]
[363795393,1748873476317,-430.0,0.00022044,2]
[363795394,1748873476327,-1301.32,0.00022315,2]
[363795395,1748873476336,-430.0,0.00022318,2]
[363795396,1748873476346,-1301.32,0.00022589,2]
[363795397,1748873476355,-430.0,0.00022592,2]
[363795398,1748873476365,-1301.51,0.00022863,2]
[363795399,1748873476375,-324.86,0.00022866,2]
[363795400,1748873476385,-56229.38515022,0.000236,2]
[363795401,1748873476395,-151.0,0.00023602,7]
[363795402,1748873476404,-151.0,0.00023602,7]
[363795403,1748873476413,-151.0,0.00023602,7]
[363795404,1748873476423,-5033.5749792,0.00023602,2]
[363795405,1748873476433,-5000.0,0.00023602,2]
[363795406,1748873476442,-1731.15770876,0.00023602,2]
[363795407,1748873476458,-3268.84229124,0.00023602,2]
[363795408,1748873476468,-722.53990618,0.00023602,2]
[363795418,1748873606779,354.002464,0.00013699,2]
[363795433,1748873841664,582.92445727,0.00016,2]
[363795434,1748873841690,2892.35240637,0.00016,2]
[363795437,1748873925655,4118.80659363,0.00015557,2]
[363795438,1748873925678,7011.159,0.00015557,2]
[363795439,1748873925700,7011.159,0.00015557,2]
[363795440,1748873925723,6758.87540637,0.00015557,2]
[363795444,1748874032612,308.0,0.00021918,60]
[363795450,1748874168708,241.839419,0.00015559,2]
[363795454,1748874278243,10.44417463,0.00016,2]
[363795455,1748874278266,4989.55582537,0.00016,2]
[363795467,1748874492511,411.86324022,0.00010618,2]
[363795473,1748874520460,805.73768101,0.00014,30]
[363795563,1748874632129,-703.37546055,0.0001629,2]
[363795657,1748874637914,-4296.62453945,0.0001629,2]
[363795659,1748874637923,-156.6840351,0.00016453,2]
[363795661,1748874637933,-300.0,0.00016551,2]
[363795663,1748874637942,-300.0,0.00016551,2]
[363795665,1748874637951,-47377.60310874,0.00016552,2]
[363795668,1748874637972,-413.15333481,0.00016552,2]
[363795670,1748874637983,-500.0,0.00016552,2]
[363795672,1748874637993,-500.0,0.00016552,2]
[363795674,1748874638003,-500.0,0.00016552,2]
[363795676,1748874638015,-500.0,0.00016552,2]
[363795678,1748874638025,-500.0,0.00016552,2]
[363795680,1748874638035,-500.0,0.00016552,2]
[363795682,1748874638045,-500.0,0.00016552,2]
[363795685,1748874638056,-439.09315112,0.00016552,2]
[363795687,1748874638066,-500.0,0.00016552,2]
[363795689,1748874638076,-600.03148859,0.00016552,2]
[363795691,1748874638086,-500.0,0.00016552,2]
[363795693,1748874638097,-500.0,0.00016552,2]
[363795695,1748874638107,-500.0,0.00016552,2]
[363795697,1748874638117,-500.0,0.00016552,2]
[363795699,1748874638128,-500.0,0.00016552,2]
[363795701,1748874638138,-500.0,0.00016552,2]
[363795704,1748874638148,-500.0,0.00016552,2]
[363795706,1748874638159,-500.0,0.00016552,2]
[363795708,1748874638169,-500.0,0.00016552,2]
[363795710,1748874638179,-500.0,0.00016552,2]
[363795712,1748874638189,-500.0,0.00016552,2]
[363795714,1748874638199,-500.0,0.00016552,2]
[363795716,1748874638209,-500.0,0.00016552,2]
[363795718,1748874638219,-500.0,0.00016552,2]
[363795720,1748874638230,-500.0,0.00016552,2]
[363795722,1748874638240,-500.0,0.00016552,2]
[363795724,1748874638250,-500.0,0.00016552,2]
[363795726,1748874638259,-500.0,0.00016552,2]
[363795729,1748874638269,-500.0,0.00016552,2]
[363795732,1748874638279,-500.0,0.00016552,2]
[363795735,1748874638290,-500.0,0.00016552,2]
[363795738,1748874638301,-500.0,0.00016552,2]
[363795742,1748874638312,-500.0,0.00016552,2]
[363795745,1748874638322,-500.0,0.00016552,2]
[363795748,1748874638332,-500.0,0.00016552,2]
[363795750,1748874638342,-500.0,0.00016552,2]
[363795752,1748874638352,-500.0,0.00016552,2]
[363795754,1748874638361,-295.95996223,0.00016552,2]
[363795756,1748874638371,-500.0,0.00016552,2]
[363795758,1748874638380,-500.0,0.00016552,2]
[363795760,1748874638390,-500.0,0.00016552,2]
[363795762,1748874638399,-159.66121323,0.00016552,2]
[363795764,1748874638409,-500.0,0.00016552,2]
[363795766,1748874638419,-500.0,0.00016552,2]
[363795768,1748874638429,-500.0,0.00016552,2]
[363795770,1748874638439,-500.0,0.00016552,2]
[363795772,1748874638448,-500.0,0.00016552,2]
[363795774,1748874638458,-500.0,0.00016552,2]
[363795776,1748874638469,-500.0,0.00016552,2]
[363795778,1748874638478,-500.0,0.00016552,2]
[363795780,1748874638488,-500.0,0.00016552,2]
[363795782,1748874638499,-430.0,0.00016553,2]
[363795784,1748874638509,-492.0,0.00016553,2]
[363795786,1748874638519,-430.0,0.00016553,2]
[363795788,1748874638529,-430.0,0.00016553,2]
[363795791,1748874638540,-430.0,0.00016553,2]
[363795793,1748874638550,-430.0,0.00016553,2]
[363795795,1748874638560,-430.0,0.00016553,2]
[363795797,1748874638571,-604.54,0.00016553,2]
[363795799,1748874638580,-430.0,0.00016553,2]
[363795801,1748874638590,-430.0,0.00016553,2]
[363795803,1748874638600,-430.0,0.00016553,2]
[363795805,1748874638610,-430.0,0.00016553,2]
[363795807,1748874638620,-430.0,0.00016553,2]
[363795809,1748874638631,-462.42,0.00016553,2]
[363795811,1748874638641,-1896.35,0.00016553,2]
[363795813,1748874638653,-430.0,0.00016553,2]
[363795815,1748874638663,-430.0,0.00016553,2]
[363795817,1748874638673,-430.0,0.00016554,2]
[363795819,1748874638683,-430.0,0.00016554,2]
[363795821,1748874638694,-430.0,0.00016554,2]
[363795823,1748874638704,-430.0,0.00016554,2]
[363795825,1748874638714,-430.0,0.00016554,2]
[363795827,1748874638725,-430.0,0.00016554,2]
[363795830,1748874638735,-430.0,0.00016554,2]
[363795832,1748874638745,-430.0,0.00016554,2]
[363795834,1748874638755,-430.0,0.00016554,2]
[363795836,1748874638766,-430.0,0.00016554,2]
[363795838,1748874638775,-430.0,0.00016554,2]
[363795840,1748874638787,-430.0,0.00016554,2]
[363795842,1748874638797,-430.0,0.00016554,2]
[363795844,1748874638807,-430.0,0.00016554,2]
[363795846,1748874638816,-430.0,0.00016554,2]
[363795848,1748874638825,-430.0,0.00016554,2]
[363795850,1748874638835,-430.0,0.00016554,2]
[363795852,1748874638844,-430.0,0.00016554,2]
[363795854,1748874638853,-430.0,0.00016554,2]
[363795856,1748874638863,-430.0,0.00016554,2]
[363795858,1748874638872,-430.0,0.00016554,2]
[363795860,1748874638881,-430.0,0.00016554,2]
[363795862,1748874638889,-430.0,0.00016554,2]
[363795864,1748874638896,-430.0,0.00016554,2]
[363795866,1748874638904,-430.0,0.00016554,2]
[363795868,1748874638914,-430.0,0.00016554,2]
[363795870,1748874638924,-876.09,0.00016554,2]
[363795872,1748874638933,-430.0,0.00016555,2]
[363795874,1748874638943,-430.0,0.00016555,2]
[363795876,1748874638953,-520.78,0.00016555,2]
[363795878,1748874638963,-438.17399433,0.00016555,2]
[363795880,1748874638976,-430.0,0.00016555,2]
[363795882,1748874638986,-430.0,0.00016555,2]
[363795884,1748874638996,-430.0,0.00016555,2]
[363795886,1748874639006,-430.0,0.00016555,2]
[363795888,1748874639018,-430.0,0.00016555,2]
[363795890,1748874639031,-430.0,0.00016555,2]
[363795892,1748874639041,-430.0,0.00016555,2]
[363795894,1748874639051,-430.0,0.00016555,2]
[363795896,1748874639061,-430.0,0.00016555,2]
[363795898,1748874639071,-430.0,0.00016555,2]
[363795908,1748874639150,-430.0,0.00016555,2]
[363795910,1748874639161,-430.0,0.00016555,2]
[363795912,1748874639170,-430.0,0.00016555,2]
[363795914,1748874639180,-430.0,0.00016555,2]
[363795916,1748874639190,-430.0,0.00016555,2]
[363795918,1748874639200,-430.0,0.00016555,2]
[363795920,1748874639210,-430.0,0.00016555,2]
[363795922,1748874639219,-430.0,0.00016555,2]
[363795923,1748874639229,-430.0,0.00016555,2]
[363795926,1748874639239,-491.02,0.00016555,2]
[363795927,1748874639248,-430.0,0.00016555,2]
[363795929,1748874639258,-430.0,0.00016555,2]
[363795931,1748874639268,-448.97793328,0.00016555,2]
[363795933,1748874639278,-430.0,0.00016555,2]
[363795935,1748874639288,-430.0,0.00016555,2]
[363795937,1748874639297,-1000.0,0.00016555,2]
[363795939,1748874639306,-430.0,0.00016555,2]
[363795941,1748874639316,-289.34705371,0.00016555,2]
[363795943,1748874639325,-555.17,0.00016555,2]
[363795945,1748874639334,-430.0,0.00016555,2]
[363795947,1748874639344,-430.0,0.00016555,2]
[363795949,1748874639355,-430.0,0.00016555,2]
[363795951,1748874639364,-430.0,0.00016555,2]
[363795953,1748874639373,-500.0,0.00016556,2]
[363795955,1748874639383,-430.0,0.00016556,2]
[363795957,1748874639392,-346.77002132,0.00016556,2]
[363795959,1748874639401,-430.0,0.00016556,2]
[363795961,1748874639411,-430.0,0.00016556,2]
[363795963,1748874639420,-430.0,0.00016556,2]
[363795965,1748874639429,-430.0,0.00016556,2]
[363795967,1748874639439,-430.0,0.00016556,2]
[363795969,1748874639448,-430.0,0.00016556,2]
[363795971,1748874639458,-430.0,0.00016556,2]
[363795972,1748874639468,-430.0,0.00016556,2]